fUSD/lending_fUSD_20250213
["ID","MTS","AMOUNT","RATE_DAILY","PERIOD"]
[352984847,1739475060409,-500.0,0.0001378,2]
[352984849,1739475060418,-1534.91,0.0001378,2]
[352984851,1739475060427,-796.87,0.0001378,2]
[352984853,1739475060436,-511.51214902,0.0001378,2]
[352984855,1739475060446,-500.0,0.0001378,2]
[352984857,1739475060455,-500.0,0.0001378,2]
[352984858,1739475060464,-1260.55,0.0001378,2]
[352984861,1739475060475,-500.0,0.0001378,2]
[352984862,1739475060487,-1202.4,0.0001378,2]
[352984864,1739475060496,-2281.4,0.0001378,2]
[352984866,1739475060506,-666.14,0.0001378,2]
[352984868,1739475060517,-778.09,0.0001378,2]
[352984870,1739475060527,-1409.62,0.0001378,2]
[352984872,1739475060536,-1429.87,0.0001378,2]
[352984874,1739475060545,-500.0,0.0001378,2]
[352984876,1739475060558,-500.0,0.0001378,2]
[352984878,1739475060567,-1040.07,0.0001378,2]
[352984880,1739475060576,-500.0,0.0001378,2]
[352984882,1739475060585,-1640.83,0.0001378,2]
[352984884,1739475060594,-801.15,0.0001378,2]
[352984886,1739475060604,-500.0,0.0001378,2]
[352984888,1739475060614,-1104.4,0.0001378,2]
[352984890,1739475060623,-579.37,0.0001378,2]
[352984892,1739475060632,-2266.57,0.0001378,2]
[352984894,1739475060642,-750.073748,0.0001378,2]
[352984896,1739475060651,-997.98,0.0001378,2]
[352984898,1739475060660,-750.073748,0.0001378,2]
[352984900,1739475060670,-750.073748,0.0001378,2]
[352984902,1739475060679,-750.073748,0.0001378,2]
[352984904,1739475060688,-2690.65,0.0001378,2]
[352984906,1739475060697,-995.51,0.0001378,2]
[352984908,1739475060706,-1200.0,0.0001378,2]
[352984910,1739475060715,-553.83,0.0001378,2]
[352984912,1739475060724,-500.0,0.0001378,2]
[352984914,1739475060734,-750.073748,0.0001378,2]
[352984916,1739475060743,-1782.01,0.0001378,2]
[352984918,1739475060753,-1239.18,0.0001378,2]
[352984920,1739475060762,-523.88285067,0.0001378,2]
[352984922,1739475060772,-750.073748,0.0001378,2]
[352984924,1739475060783,-750.073748,0.0001378,2]
[352984926,1739475060792,-750.073748,0.0001378,2]
[352984928,1739475060802,-270.24084137,0.0001378,2]
[352984930,1739475060812,-500.0,0.0001378,2]
[352984932,1739475060821,-500.0,0.0001378,2]
[352984934,1739475060830,-500.0,0.0001378,2]
[352984936,1739475060839,-552.72,0.0001378,2]
[352984938,1739475060848,-166.37798312,0.0001378,2]
[352984940,1739475060857,-1282.95,0.0001378,2]
[352984942,1739475060866,-502.78436223,0.0001378,2]
[352984944,1739475060875,-500.0,0.0001378,2]
[352984946,1739475060885,-505.23288235,0.0001378,2]
[352984947,1739475060894,-500.0,0.0001378,2]
[352984949,1739475060903,-624.24,0.0001378,2]
[352984951,1739475060913,-500.0,0.0001378,2]
[352984953,1739475060923,-508.62614444,0.0001378,2]
[352984955,1739475060932,-2850.49,0.0001378,2]
[352984957,1739475060941,-1002.9,0.0001378,2]
[352984959,1739475060951,-1467.1,0.0001378,2]
[352984961,1739475060960,-1400.22,0.0001378,2]
[352984963,1739475060969,-500.0,0.0001378,2]
[352984965,1739475060978,-2108.26,0.0001378,2]
[352984967,1739475060988,-709.63,0.0001378,2]
[352984969,1739475060997,-500.0,0.0001378,2]
[352984971,1739475061006,-504.69943792,0.0001378,2]
[352984973,1739475061016,-500.0,0.0001378,2]
[352984975,1739475061025,-500.0,0.0001378,2]
[352984977,1739475061035,-632.42016087,0.0001378,2]
[352984979,1739475061044,-500.0,0.0001378,2]
[352984981,1739475061055,-500.0,0.0001378,2]
[352984983,1739475061065,-500.0,0.0001378,2]
[352984985,1739475061074,-1522.94,0.0001378,2]
[352984987,1739475061083,-2069.75,0.0001378,2]
[352984989,1739475061093,-500.0,0.0001378,2]
[352984991,1739475061102,-500.0,0.0001378,2]
[352984993,1739475061112,-1244.854476,0.0001378,2]
[352984995,1739475061121,-1244.854476,0.0001378,2]
[352984997,1739475061131,-772.53,0.0001378,2]
[352984999,1739475061140,-1244.854476,0.0001378,2]
[352985001,1739475061150,-500.0,0.0001378,2]
[352985003,1739475061159,-1244.854476,0.0001378,2]
[352985005,1739475061168,-562.92041486,0.0001378,2]
[352985007,1739475061178,-511.85,0.0001378,2]
[352985009,1739475061187,-2656.38,0.0001378,2]
[352985011,1739475061196,-500.0,0.0001378,2]
[352985013,1739475061206,-1294.55,0.0001378,2]
[352985015,1739475061215,-1244.854476,0.0001378,2]
[352985017,1739475061224,-178.000446,0.0001378,2]
[352985019,1739475061233,-1244.854476,0.0001378,2]
[352985021,1739475061242,-178.000446,0.0001378,2]
[352985022,1739475061251,-178.000446,0.0001378,2]
[352985024,1739475061261,-1244.854476,0.0001378,2]
[352985026,1739475061270,-502.13547077,0.0001378,2]
[352985028,1739475061279,-178.000446,0.0001378,2]
[352985030,1739475061289,-1244.854476,0.0001378,2]
[352985032,1739475061298,-178.000446,0.0001378,2]
[352985034,1739475061309,-1429.9,0.0001378,2]
[352985036,1739475061318,-524.36,0.0001378,2]
[352985038,1739475061327,-178.000446,0.0001378,2]
[352985040,1739475061336,-178.000446,0.0001378,2]
[352985042,1739475061345,-178.000446,0.0001378,2]
[352985044,1739475061355,-2577.652306,0.0001378,2]
[352985046,1739475061364,-178.000446,0.0001378,2]
[352985048,1739475061373,-1094.44,0.0001378,2]
[352985050,1739475061382,-178.000446,0.0001378,2]
[352985052,1739475061392,-2577.652306,0.0001378,2]
[352985054,1739475061402,-1329.41,0.0001378,2]
[352985056,1739475061411,-2577.652306,0.0001378,2]
[352985058,1739475061421,-2577.652306,0.0001378,2]
[352985060,1739475061430,-2577.652306,0.0001378,2]
[352985062,1739475061440,-500.0,0.0001378,2]
[352985064,1739475061450,-500.0,0.0001378,2]
[352985066,1739475061459,-2577.652306,0.0001378,2]
[352985068,1739475061468,-2577.652306,0.0001378,2]
[352985070,1739475061482,-1283.0,0.0001378,2]
[352985072,1739475061491,-2577.652306,0.0001378,2]
[352985074,1739475061501,-2577.652306,0.0001378,2]
[352985076,1739475061511,-500.0,0.0001378,2]
[352985078,1739475061521,-2577.652306,0.0001378,2]
[352985080,1739475061530,-697.86,0.0001378,2]
[352985082,1739475061540,-1309.11,0.0001378,2]
[352985084,1739475061549,-2064.23,0.0001378,2]
[352985085,1739475061562,-1583.82,0.0001378,2]
[352985088,1739475061572,-3475.390041,0.0001378,2]
[352985089,1739475061582,-1251.18,0.0001378,2]
[352985091,1739475061592,-3475.390041,0.0001378,2]
[352985094,1739475061603,-3475.390041,0.0001378,2]
[352985095,1739475061612,-3475.390041,0.0001378,2]
[352985097,1739475061622,-3475.390041,0.0001378,2]
[352985099,1739475061632,-547.91,0.0001378,2]
[352985101,1739475061642,-3475.390041,0.0001378,2]
[352985103,1739475061653,-3475.390041,0.0001378,2]
[352985105,1739475061668,-3475.390041,0.0001378,2]
[352985107,1739475061689,-3475.390041,0.0001378,2]
[352985109,1739475061699,-3475.390041,0.0001378,2]
[352985111,1739475061708,-508.29469466,0.0001378,2]
[352985113,1739475061718,-4371.78,0.0001378,2]
[352985127,1739475061856,-2869.16,0.0001378,2]
[352985129,1739475061867,-2077.18,0.0001378,2]
[352985131,1739475061877,-881.09,0.0001378,2]
[352985133,1739475061888,-505.20823287,0.0001378,2]
[352985135,1739475061898,-500.0,0.0001378,2]
[352985137,1739475061908,-500.0,0.0001378,2]
[352985139,1739475061918,-1441.54,0.0001378,2]
[352985141,1739475061928,-900.83,0.0001378,2]
[352985143,1739475061939,-1361.19,0.0001378,2]
[352985145,1739475061949,-328.63491196,0.0001378,2]
[352985147,1739475061959,-2768.36,0.0001378,2]
[352985149,1739475061968,-500.0,0.0001378,2]
[352985151,1739475061978,-1295.81,0.0001378,2]
[352985153,1739475061987,-1405.83,0.0001378,2]
[352985155,1739475061997,-1763.39,0.0001378,2]
[352985157,1739475062007,-277.912437,0.0001378,2]
[352985159,1739475062017,-277.912437,0.0001378,2]
[352985161,1739475062026,-277.912437,0.0001378,2]
[352985163,1739475062035,-277.912437,0.0001378,2]
[352985165,1739475062045,-277.912437,0.0001378,2]
[352985167,1739475062055,-500.0,0.0001378,2]
[352985169,1739475062065,-1889.55,0.0001378,2]
[352985171,1739475062075,-500.0,0.0001378,2]
[352985173,1739475062084,-277.912437,0.0001378,2]
[352985175,1739475062094,-277.912437,0.0001378,2]
[352985177,1739475062104,-277.912437,0.0001378,2]
[352985179,1739475062113,-277.912437,0.0001378,2]
[352985181,1739475062123,-277.912437,0.0001378,2]
[352985183,1739475062132,-174.81702431,0.0001378,2]
[352985185,1739475062142,-1150.21,0.0001378,2]
[352985187,1739475062151,-500.0,0.0001378,2]
[352985189,1739475062161,-500.0,0.0001378,2]
[352985191,1739475062170,-500.0,0.0001378,2]
[352985192,1739475062180,-1732.66,0.0001378,2]
[352985195,1739475062190,-2670.18,0.0001378,2]
[352985196,1739475062199,-500.0,0.0001378,2]
[352985198,1739475062209,-783.68,0.0001378,2]
[352985200,1739475062218,-500.0,0.0001378,2]
[352985202,1739475062228,-579.20944229,0.0001378,2]
[352985204,1739475062238,-500.0,0.0001378,2]
[352985206,1739475062247,-500.0,0.0001378,2]
[352985208,1739475062257,-500.0,0.0001378,2]
[352985210,1739475062267,-500.0,0.0001378,2]
[352985212,1739475062277,-1121.82,0.0001378,2]
[352985215,1739475062287,-1548.28,0.0001378,2]
[352985216,1739475062297,-1244.33,0.0001378,2]
[352985218,1739475062309,-2668.94,0.0001378,2]
[352985221,1739475062320,-1777.99,0.0001378,2]
[352985222,1739475062330,-1985.8,0.0001378,2]
[352985224,1739475062339,-500.0,0.0001378,2]
[352985227,1739475062350,-2785.75,0.0001378,2]
[352985228,1739475062359,-500.0,0.0001378,2]
[352985230,1739475062369,-2115.88,0.0001378,2]
[352985232,1739475062380,-500.0,0.0001378,2]
[352985234,1739475062391,-500.0,0.0001378,2]
[352985236,1739475062401,-1226.27,0.0001378,2]
[352985238,1739475062411,-1238.48,0.0001378,2]
[352985240,1739475062420,-2525.46,0.0001378,2]
[352985243,1739475062431,-3166.11,0.0001378,2]
[352985244,1739475062441,-500.0,0.0001378,2]
[352985246,1739475062451,-500.0,0.0001378,2]
[352985247,1739475062460,-1513.55,0.0001378,2]
[352985248,1739475062471,-4385.52,0.0001378,2]
[352985249,1739475062484,-500.0,0.0001378,2]
[352985250,1739475062494,-500.0,0.0001378,2]
[352985251,1739475062504,-983.29,0.0001378,2]
[352985252,1739475062514,-1240.73,0.0001378,2]
[352985253,1739475062525,-2459.84,0.0001378,2]
[352985254,1739475062535,-2655.01,0.0001378,2]
[352985255,1739475062545,-500.0,0.0001378,2]
[352985256,1739475062559,-500.0,0.0001378,2]
[352985258,1739475062570,-502.13438114,0.0001378,2]
[352985260,1739475062579,-522.08006249,0.0001378,2]
[352985262,1739475062590,-469.12219528,0.0001378,2]
[352985264,1739475062599,-500.0,0.0001378,2]
[352985266,1739475062609,-2037.61,0.0001378,2]
[352985268,1739475062618,-5530.04,0.0001378,2]
[352985270,1739475062627,-577.99,0.0001378,2]
[352985272,1739475062637,-500.0,0.0001378,2]
[352985274,1739475062647,-500.0,0.0001378,2]
[352985276,1739475062657,-500.0,0.0001378,2]
[352985278,1739475062668,-866.54,0.0001378,2]
[352985280,1739475062678,-500.0,0.0001378,2]
[352985282,1739475062687,-899.93,0.0001378,2]
[352985284,1739475062697,-500.0,0.0001378,2]
[352985286,1739475062707,-2385.67,0.0001378,2]
[352985288,1739475062717,-500.0,0.0001378,2]
[352985289,1739475062726,-2446.7,0.0001378,2]
[352985291,1739475062736,-3263.65,0.0001378,2]
[352985293,1739475062746,-946.97,0.0001378,2]
[352985295,1739475062756,-6174.71,0.0001378,2]
[352985297,1739475062766,-151.0,0.0001378,2]
[352985299,1739475062775,-1214.97,0.0001378,2]
[352985301,1739475062786,-151.0,0.0001378,2]
[352985303,1739475062796,-599.62,0.0001378,2]
[352985305,1739475062808,-151.0,0.0001378,2]
[352985307,1739475062818,-151.0,0.0001378,2]
[352985309,1739475062827,-2027.08,0.0001378,2]
[352985311,1739475062838,-1650.21,0.0001378,2]
[352985313,1739475062848,-5493.44,0.0001378,2]
[352985315,1739475062857,-151.0,0.0001378,2]
[352985317,1739475062868,-151.0,0.0001378,2]
[352985319,1739475062878,-151.0,0.0001378,2]
[352985321,1739475062888,-245.903562,0.0001378,2]
[352985323,1739475062898,-1211.61,0.0001378,2]
[352985325,1739475062908,-940.13,0.0001378,2]
[352985327,1739475062918,-500.0,0.0001378,2]
[352985329,1739475062928,-4125.45,0.0001378,2]
[352985331,1739475062937,-1075.510688,0.0001378,2]
[352985333,1739475062948,-500.0,0.0001378,2]
[352985335,1739475062958,-4126.09,0.0001378,2]
[352985337,1739475062969,-500.0,0.0001378,2]
[352985339,1739475062977,-544.37,0.0001378,2]
[352985341,1739475062987,-3802.99,0.0001378,2]
[352985343,1739475062997,-504.38815824,0.0001378,2]
[352985345,1739475063007,-3347.0,0.0001378,2]
[352985347,1739475063018,-500.0,0.0001378,2]
[352985349,1739475063029,-774.19,0.0001378,2]
[352985351,1739475063040,-500.0,0.0001378,2]
[352985353,1739475063052,-809.66,0.0001378,2]
[352985355,1739475063067,-717.64,0.0001378,2]
[352985357,1739475063078,-2939.99,0.0001378,2]
[352985359,1739475063088,-2077.66,0.0001378,2]
[352985361,1739475063097,-2828.19,0.0001378,2]
[352985363,1739475063108,-2886.05,0.0001378,2]
[352985365,1739475063119,-5356.84,0.0001378,2]
[352985367,1739475063130,-1618.43,0.0001378,2]
[352985369,1739475063141,-3235.78,0.0001378,2]
[352985371,1739475063151,-500.0,0.0001378,2]
[352985373,1739475063161,-500.0,0.0001378,2]
[352985375,1739475063171,-1540.895058,0.0001378,2]
[352985377,1739475063181,-500.0,0.0001378,2]
[352985379,1739475063191,-4316.27,0.0001378,2]
[352985381,1739475063201,-5036.59,0.0001378,2]
[352985383,1739475063210,-2371.41,0.0001378,2]
[352985384,1739475063220,-500.0,0.0001378,2]
[352985386,1739475063229,-2004.58,0.0001378,2]
[352985388,1739475063239,-1936.09,0.0001378,2]
[352985390,1739475063249,-985.692821,0.0001378,2]
[352985392,1739475063258,-1131.94,0.0001378,2]
[352985394,1739475063267,-937.68,0.0001378,2]
[352985396,1739475063278,-2221.99,0.0001378,2]
[352985398,1739475063287,-738.62,0.0001378,2]
[352985400,1739475063298,-6171.14,0.0001378,2]
[352985402,1739475063311,-500.0,0.0001378,2]
[352985404,1739475063322,-1717.13,0.0001378,2]
[352985406,1739475063332,-500.0,0.0001378,2]
[352985408,1739475063344,-2000.21,0.0001378,2]
[352985410,1739475063354,-210.60823566,0.0001378,2]
[352985412,1739475063367,-500.0,0.0001378,2]
[352985414,1739475063377,-1114.91,0.0001378,2]
[352985416,1739475063386,-500.0,0.0001378,2]
[352985418,1739475063396,-1348.69,0.0001378,2]
[352985420,1739475063405,-2250.57,0.0001378,2]
[352985422,1739475063415,-500.0,0.0001378,2]
[352985424,1739475063425,-508.63320035,0.0001378,2]
[352985426,1739475063436,-971.57,0.0001378,2]
[352985428,1739475063449,-1336.768423,0.0001378,2]
[352985430,1739475063459,-500.0,0.0001378,2]
[352985433,1739475063471,-3900.58,0.0001378,2]
[352985435,1739475063484,-4350.9,0.0001378,2]
[352985437,1739475063497,-2258.94,0.0001378,2]
[352985439,1739475063507,-811.195997,0.0001378,2]
[352985441,1739475063518,-490.44,0.0001378,2]
[352985443,1739475063530,-689.33,0.0001378,2]
[352985445,1739475063540,-983.48,0.0001378,2]
[352985447,1739475063552,-1198.84,0.0001378,2]
[352985449,1739475063566,-500.0,0.0001378,2]
[352985451,1739475063577,-500.0,0.0001378,2]
[352985453,1739475063587,-5365.37,0.0001378,2]
[352985455,1739475063598,-397.471021,0.0001378,2]
[352985457,1739475063609,-397.471021,0.0001378,2]
[352985459,1739475063619,-500.0,0.0001378,2]
[352985462,1739475063629,-397.471021,0.0001378,2]
[352985464,1739475063640,-397.471021,0.0001378,2]
[352985465,1739475063650,-500.0,0.0001378,2]
[352985468,1739475063662,-1649.95,0.0001378,2]
[352985470,1739475063673,-397.471021,0.0001378,2]
[352985472,1739475063683,-397.471021,0.0001378,2]
[352985474,1739475063693,-397.471021,0.0001378,2]
[352985476,1739475063703,-1161.477646,0.0001378,2]
[352985478,1739475063713,-397.471021,0.0001378,2]
[352985480,1739475063724,-1161.477646,0.0001378,2]
[352985494,1739475063863,-1161.477646,0.0001378,2]
[352985496,1739475063874,-1161.477646,0.0001378,2]
[352985498,1739475063885,-500.0,0.0001378,2]
[352985500,1739475063897,-500.0,0.0001378,2]
[352985502,1739475063907,-1161.477646,0.0001378,2]
[352985504,1739475063918,-1161.477646,0.0001378,2]
[352985506,1739475063929,-1161.477646,0.0001378,2]
[352985508,1739475063939,-1067.012239,0.0001378,2]
[352985510,1739475063949,-1661.34,0.0001378,2]
[352985512,1739475063959,-500.0,0.0001378,2]
[352985514,1739475063969,-2641.12,0.0001378,2]
[352985516,1739475063979,-4439.72,0.0001378,2]
[352985518,1739475063989,-1527.53,0.0001378,2]
[352985520,1739475063999,-500.0,0.0001378,2]
[352985522,1739475064010,-395.94949363,0.0001378,2]
[352985524,1739475064021,-3972.1,0.0001378,2]
[352985526,1739475064032,-6727.14,0.0001378,2]
[352985528,1739475064042,-638.084319,0.0001378,2]
[352985531,1739475064054,-500.0,0.0001378,2]
[352985533,1739475064065,-1256.13,0.0001378,2]
[352985535,1739475064076,-903.73,0.0001378,2]
[352985537,1739475064086,-500.0,0.0001378,2]
[352985538,1739475064096,-3601.34,0.0001378,2]
[352985540,1739475064106,-4448.06,0.0001378,2]
[352985542,1739475064117,-1161.477646,0.0001378,2]
[352985544,1739475064127,-1608.2,0.0001378,2]
[352985546,1739475064137,-1347.74,0.0001378,2]
[352985548,1739475064147,-500.0,0.0001378,2]
[352985551,1739475064160,-4307.36,0.0001378,2]
[352985553,1739475064170,-1728.2,0.0001378,2]
[352985555,1739475064180,-500.0,0.0001378,2]
[352985557,1739475064190,-3369.76,0.0001378,2]
[352985559,1739475064200,-500.0,0.0001378,2]
[352985561,1739475064210,-1047.06,0.0001378,2]
[352985563,1739475064221,-3046.15,0.0001378,2]
[352985565,1739475064230,-821.756448,0.0001378,2]
[352985566,1739475064240,-694.85,0.0001378,2]
[352985568,1739475064250,-516.44,0.0001378,2]
[352985571,1739475064261,-500.0,0.0001378,2]
[352985572,1739475064271,-5167.61,0.0001378,2]
[352985574,1739475064282,-5739.84,0.0001378,2]
[352985576,1739475064292,-500.0,0.0001378,2]
[352985578,1739475064303,-2692.01,0.0001378,2]
[352985580,1739475064317,-500.0,0.0001378,2]
[352985582,1739475064328,-151.0,0.0001378,2]
[352985585,1739475064339,-4280.0,0.0001378,2]
[352985587,1739475064350,-4071.84,0.0001378,2]
[352985589,1739475064361,-151.0,0.0001378,2]
[352985591,1739475064371,-5540.57,0.0001378,2]
[352985593,1739475064381,-151.0,0.0001378,2]
[352985595,1739475064391,-4613.96,0.0001378,2]
[352985597,1739475064400,-151.0,0.0001378,2]
[352985599,1739475064410,-1755.49,0.0001378,2]
[352985601,1739475064419,-151.0,0.0001378,2]
[352985603,1739475064429,-648.52,0.0001378,2]
[352985604,1739475064439,-2979.72,0.0001378,2]
[352985607,1739475064449,-500.0,0.0001378,2]
[352985608,1739475064460,-1546.84,0.0001378,2]
[352985610,1739475064471,-151.0,0.0001378,2]
[352985613,1739475064484,-151.0,0.0001378,2]
[352985615,1739475064494,-5417.0,0.0001378,2]
[352985616,1739475064505,-151.0,0.0001378,2]
[352985619,1739475064516,-151.0,0.0001378,2]
[352985621,1739475064528,-4857.67,0.0001378,2]
[352985623,1739475064539,-291.76003,0.0001378,2]
[352985625,1739475064550,-2491.99,0.0001378,2]
[352985627,1739475064564,-2015.41,0.0001378,2]
[352985629,1739475064574,-500.0,0.0001378,2]
[352985631,1739475064585,-2318.33,0.0001378,2]
[352985633,1739475064595,-794.46,0.0001378,2]
[352985635,1739475064605,-500.0,0.0001378,2]
[352985637,1739475064615,-801.08,0.0001378,2]
[352985639,1739475064626,-4191.53,0.0001378,2]
[352985641,1739475064638,-500.0,0.0001378,2]
[352985643,1739475064649,-2304.68,0.0001378,2]
[352985645,1739475064659,-5634.82,0.0001378,2]
[352985646,1739475064669,-3695.91,0.0001378,2]
[352985648,1739475064679,-500.0,0.0001378,2]
[352985650,1739475064690,-7013.62,0.0001378,2]
[352985652,1739475064700,-500.0,0.0001378,2]
[352985655,1739475064710,-6386.13,0.0001378,2]
[352985657,1739475064720,-4656.79,0.0001378,2]
[352985659,1739475064730,-667.31,0.0001378,2]
[352985660,1739475064740,-1455.88,0.0001378,2]
[352985663,1739475064752,-4741.68,0.0001378,2]
[352985666,1739475064771,-500.0,0.0001378,2]
[352985668,1739475064788,-500.0,0.0001378,2]
[352985671,1739475064811,-1601.24,0.0001378,2]
[352985674,1739475064830,-512.713647,0.0001378,2]
[352985676,1739475064847,-500.0,0.0001378,2]
[352985679,1739475064864,-500.0,0.0001378,2]
[352985682,1739475064884,-5576.37,0.0001378,2]
[352985686,1739475064905,-4482.65,0.0001378,2]
[352985688,1739475064923,-1856.19,0.0001378,2]
[352985691,1739475064943,-14453.63,0.0001378,2]
[352985694,1739475064958,-1470.92,0.0001378,2]
[352985697,1739475064975,-508.49,0.0001378,2]
[352985699,1739475064989,-559.61,0.0001378,2]
[352985703,1739475065007,-500.0,0.0001378,2]
[352985705,1739475065020,-5159.44,0.0001378,2]
[352985708,1739475065038,-644.209003,0.0001378,2]
[352985710,1739475065054,-13563.83,0.0001378,2]
[352985712,1739475065076,-3051.16,0.0001378,2]
[352985713,1739475065094,-5819.32,0.0001378,2]
[352985714,1739475065110,-609.3,0.0001378,2]
[352985715,1739475065126,-402.334344,0.0001378,2]
[352985716,1739475065141,-5482.63,0.0001378,2]
[352985717,1739475065157,-3140.09,0.0001378,2]
[352985719,1739475065174,-5682.07,0.0001378,2]
[352985722,1739475065190,-4902.14,0.0001378,2]
[352985723,1739475065205,-4482.95,0.0001378,2]
[352985724,1739475065222,-7116.76,0.0001378,2]
[352985725,1739475065237,-4035.5,0.0001378,2]
[352985726,1739475065254,-917.22,0.0001378,2]
[352985727,1739475065270,-2875.07,0.0001378,2]
[352985728,1739475065286,-438.711195,0.0001378,2]
[352985729,1739475065302,-1818.26,0.0001378,2]
[352985730,1739475065321,-438.711195,0.0001378,2]
[352985731,1739475065336,-438.711195,0.0001378,2]
[352985732,1739475065352,-438.711195,0.0001378,2]
[352985733,1739475065368,-438.711195,0.0001378,2]
[352985734,1739475065384,-500.0,0.0001378,2]
[352985735,1739475065400,-3701.2,0.0001378,2]
[352985736,1739475065416,-4745.42,0.0001378,2]
[352985739,1739475065433,-5400.43,0.0001378,2]
[352985741,1739475065448,-4379.0,0.0001378,2]
[352985743,1739475065465,-438.711195,0.0001378,2]
[352985744,1739475065483,-438.711195,0.0001378,2]
[352985745,1739475065499,-7065.63,0.0001378,2]
[352985746,1739475065516,-438.711195,0.0001378,2]
[352985749,1739475065532,-3515.39,0.0001378,2]
[352985751,1739475065547,-438.711195,0.0001378,2]
[352985752,1739475065566,-503.889883,0.0001378,2]
[352985753,1739475065581,-438.711195,0.0001378,2]
[352985754,1739475065597,-3128.49,0.0001378,2]
[352985755,1739475065613,-1600.83,0.0001378,2]
[352985756,1739475065628,-324.536157,0.0001378,2]
[352985757,1739475065643,-1315.3,0.0001378,2]
[352985758,1739475065661,-500.0,0.0001378,2]
[352985759,1739475065677,-323.47499013,0.0001378,2]
[352985760,1739475065692,-4301.87,0.0001378,2]
[352985761,1739475065707,-6974.62,0.0001378,2]
[352985762,1739475065723,-4793.31,0.0001378,2]
[352985763,1739475065739,-6850.71,0.0001378,2]
[352985764,1739475065754,-4375.28,0.0001378,2]
[352985765,1739475065770,-500.0,0.0001378,2]
[352985766,1739475065786,-2576.59,0.0001378,2]
[352985767,1739475065801,-2377.35,0.0001378,2]
[352985768,1739475065818,-500.0,0.0001378,2]
[352985769,1739475065832,-500.0,0.0001378,2]
[352985770,1739475065847,-944.39,0.0001378,2]
[352985771,1739475065862,-500.0,0.0001378,2]
[352985772,1739475065878,-11994.19,0.0001378,2]
[352985773,1739475065895,-500.0,0.0001378,2]
[352985774,1739475065910,-500.0,0.0001378,2]
[352985775,1739475065927,-3180.17,0.0001378,2]
[352985776,1739475065942,-473.261478,0.0001378,2]
[352985777,1739475065959,-684.62,0.0001378,2]
[352985778,1739475065973,-500.0,0.0001378,2]
[352985779,1739475065989,-500.0,0.0001378,2]
[352985780,1739475066005,-280.670404,0.0001378,2]
[352985781,1739475066020,-722.17,0.0001378,2]
[352985782,1739475066036,-500.0,0.0001378,2]
[352985783,1739475066052,-772.21,0.0001378,2]
[352985784,1739475066069,-1032.81,0.0001378,2]
[352985785,1739475066085,-151.0,0.0001378,2]
[352985786,1739475066101,-9134.028274,0.0001378,2]
[352985787,1739475066117,-151.0,0.0001378,2]
[352985788,1739475066133,-9134.028274,0.0001378,2]
[352985789,1739475066317,-151.0,0.0001378,2]
[352985790,1739475066327,-9134.028274,0.0001378,2]
[352985791,1739475066337,-151.0,0.0001378,2]
[352985792,1739475066346,-616.5,0.0001378,2]
[352985793,1739475066356,-9134.028274,0.0001378,2]
[352985794,1739475066366,-151.0,0.0001378,2]
[352985795,1739475066377,-500.0,0.0001378,2]
[352985796,1739475066387,-9134.028274,0.0001378,2]
[352985797,1739475066397,-500.0,0.0001378,2]
[352985798,1739475066407,-500.0,0.0001378,2]
[352985799,1739475066417,-500.0,0.0001378,2]
[352985800,1739475066427,-9134.028274,0.0001378,2]